Cogmind - Beta 15 @@@ ROGUE MODE // 2025.08.31 @ 19:53:48 Player: TapeIsSticky Result: Destroyed by X-77 Beamer with Gatling Laser Performance ------------- Evolutions (6) 3000 Regions Visited (18) 3600 Robots Destroyed (92) 460 Value Destroyed (3386) 3386 Prototype IDs (35) 700 Alien Tech Used (2) 400 Bonus (1836) 1836 TOTAL SCORE: 13382 Bonus ------- Follower Combat Kills 269 Registered with UFD 300 Destroyed Z-Imprinter 1000 Met Zhirov 300 Friendly Fire -33 Cogmind --------- Core Integrity 0/1150 Matter 270/300 Energy 99/100 System Corruption 24% Temperature Cool (30) Movement Core (50) Location -4/Factory Parts ------- > --- POWER (2) -------- (None) > --- PROPULSION (5) --- (None) > --- UTILITY (9) ------ (None) > --- WEAPON (3) ------- (None) > --- INVENTORY (5) ---- Improved Matter Compressor (160) Quantum Capacitor Improved Core Shielding Advanced Hacking Suite Peak State ------------ > --- POWER ------------ Fusion Reactor Zionite Light DM Reactor > --- PROPULSION ------- Armored Medium Treads Heavy Treads Overtuned Huge Scrapsphere > --- UTILITY ---------- Scrap Suit Experimental Heat Sink Huge Storage Unit Deep Structural Scanner Experimental Sensor Array Experimental Signal Interpreter Improved Transmission Jammer Layered Medium Armor Plating > --- WEAPON ----------- Hypervelocity Coil Gun Hypervelocity Coil Gun Hardcell Cannon > --- INVENTORY -------- Antimatter Reactor Zionite Light DM Reactor Armored Medium Treads Overtuned Medium Treads Advanced Cooling System Zionite Biocell Improved Matter Compressor Surveybot 17 Chip Improved Armor Integrity Analyzer Quantum Capacitor Improved Weapon Cycler Makeshift Cloaking Device Experimental Utility Shielding Zionite Weapon Casing Improved Medium Armor Plating Advanced Hacking Suite Hacking Drone Bay Phasing AFG Transdimensional Reconstructor HERF Cannon Guided Plasma Cannon Hypervelocity Mass Driver Enhanced Hardcell Cannon Heavy Shock Bomb Launcher [Rating: 130] Favorites ----------- Power Light Fission Core Engine Cooled Ion Engine Power Core Light Fission Core Reactor Antimatter Reactor Propulsion Armored Treads Treads Armored Treads Wheel Overtuned Huge Scrapsphere Utility Huge Storage Unit Device Scrap Suit Storage Huge Storage Unit Processor Improved Signal Interpreter Protection Layered Medium Armor Plating Weapon Zionite Laser-M Energy Gun Zionite Laser-M Energy Cannon Subdweller Beam Cannon Ballistic Gun Overtuned Barrage Gun Ballistic Cannon Advanced Assault Cannon Launcher Heavy Shock Bomb Launcher Special Weapon Junk Cannon Build | -11 -10 -10 -8 -8 -6 -6 -6 -6 -6 -5 -5 -5 -5 -5 -5 -5 -4 -4 ------- Run | Yrd Mat Sub Rec Scr Fac Low Low Zio Dee Pro Fac Was Fac Upp Upp Zhi Pro Fac Slots Evolved 12 | . . . . . 8 . . . . . 2 . . . . . . 2 Power 1 | . . . . . 1 . . . . . . . . . . . . . Propulsion 3 | . . . . . 2 . . . . . . . . . . . . 1 Utility 7 | . . . . . 4 . . . . . 2 . . . . . . 1 Weapon 1 | . . . . . 1 . . . . . . . . . . . . . Parts Attached 132 | 7 11 10 3 17 7 4 5 12 13 1 3 6 3 4 5 4 2 15 Power 16 | 1 3 . 1 1 1 . . 1 1 . . 2 1 . . 1 . 3 Engine 7 | 1 3 . 1 1 . . . 1 . . . . . . . . . . Core 3 | . . . . . 1 . . . . . . . . . . . . 2 Reactor 6 | . . . . . . . . . 1 . . 2 1 . . 1 . 1 Propulsion 20 | 2 2 3 1 4 2 . . 2 . . 1 . . . . . . 3 Treads 13 | 2 1 . . 3 1 . . 2 . . 1 . . . . . . 3 Leg . | . . . . . . . . . . . . . . . . . . . Wheel 7 | . 1 3 1 1 1 . . . . . . . . . . . . . Hover . | . . . . . . . . . . . . . . . . . . . Flight . | . . . . . . . . . . . . . . . . . . . Utility 46 | 2 4 . . 4 4 2 3 4 6 1 2 3 1 2 2 2 . 4 Device 25 | 1 1 . . 3 2 1 2 2 4 1 2 3 . . 2 . . 1 Storage 8 | 1 3 . . 1 . . . . 1 . . . . 1 . 1 . . Processor 5 | . . . . . 1 . . 1 . . . . . 1 . . . 2 Hackware . | . . . . . . . . . . . . . . . . . . . Protection 8 | . . . . . 1 1 1 1 1 . . . 1 . . 1 . 1 Artifact . | . . . . . . . . . . . . . . . . . . . Weapon 50 | 2 2 7 1 8 . 2 2 5 6 . . 1 1 2 3 1 2 5 Energy Gun 10 | 1 . 5 . . . . . . 4 . . . . . . . . . Energy Cannon 9 | . . 1 1 1 . . . 1 2 . . . . 2 1 . . . Ballistic Gun 14 | 1 . . . 5 . 1 . 1 . . . . . . 2 . 1 3 Ballistic Cannon 9 | . 1 . . 1 . . 1 2 . . . . . . . 1 1 2 Launcher 5 | . 1 . . . . . 1 1 . . . 1 1 . . . . . Special Weapon 3 | . . 1 . 1 . 1 . . . . . . . . . . . . Impact Weapon . | . . . . . . . . . . . . . . . . . . . Slashing Weapon . | . . . . . . . . . . . . . . . . . . . Piercing Weapon . | . . . . . . . . . . . . . . . . . . . Special Melee Weapon . | . . . . . . . . . . . . . . . . . . . Unidentified Prototypes 20 | . 1 . . 1 . . . 2 9 . . 1 . 2 . 4 . . Corrupted Parts 1 | . . 1 . . . . . . . . . . . . . . . . System Corruption 10 | . . 10 . . . . . . . . . . . . . . . . Parts Lost 24 | . 3 7 . . . . . . . . . . 2 . . . . 12 Power 4 | . . 1 . . . . . . . . . . 1 . . . . 2 Propulsion 5 | . 1 3 . . . . . . . . . . . . . . . 1 Utility 6 | . 1 . . . . . . . . . . . . . . . . 5 Weapon 9 | . 1 3 . . . . . . . . . . 1 . . . . 4 Highest Loss Streak 5 | . 1 2 . . . . . . . . . . 2 . . . . 5 To Critical Strikes 1 | . . 1 . . . . . . . . . . . . . . . . Average Backups 20 | 2 8 14 20 18 23 23 24 23 24 24 24 23 23 22 20 22 23 23 Power 1 | . 1 2 2 1 2 2 2 1 1 2 2 2 1 1 1 1 2 1 Propulsion 2 | . . 1 . 1 3 4 4 2 2 3 2 2 1 1 1 1 1 1 Utility 9 | . 2 4 6 6 8 9 10 11 12 11 10 11 12 13 12 13 14 14 Weapon 7 | . 3 6 10 8 8 7 7 6 7 7 8 8 7 7 6 5 5 4 Tool/Special . | . . . . . . . . . . . . . . . . . . . Unused Backups 52 | . . . . 14 5 1 1 1 5 . 1 1 . 2 2 2 . 17 Power 6 | . . . . 2 2 . . . 1 . . 1 . . . . . . Propulsion . | . . . . . . . . . . . . . . . . . . . Utility 27 | . . . . 6 1 . . 1 4 . . . . 2 1 2 . 10 Weapon 18 | . . . . 6 2 1 1 . . . 1 . . . 1 . . 6 Tool/Special 1 | . . . . . . . . . . . . . . . . . . 1 Average Slot Usage (%) 84 | . 90 97 88 77 81 86 86 86 84 86 87 88 87 88 87 71 83 81 Engine 7 | . 10 13 13 12 6 6 6 6 6 6 5 2 . . . . . . Core 1 | . . . . . 5 6 6 6 6 6 5 . . . . . . 1 Reactor 2 | . . . . . . . . . . . . 7 10 11 11 11 11 8 Treads 13 | . 21 13 . 13 13 13 13 18 14 13 11 11 11 11 11 11 11 9 Wheel 7 | . 3 12 28 10 6 6 6 3 5 6 5 5 5 5 5 5 5 4 Device 16 | . 11 13 14 12 19 19 19 13 6 20 22 23 21 23 22 23 23 23 Storage 8 | . 14 14 14 12 6 6 6 6 6 6 5 5 5 5 5 5 5 4 Processor 3 | . . . . . 3 6 6 9 13 6 5 5 5 5 5 5 5 5 Protection 2 | . . . . . . . . 2 5 . 5 5 6 5 5 4 5 5 Energy Gun 5 | . 14 20 . . . . . . 15 6 5 15 14 5 . . . . Energy Cannon 4 | . . 3 16 5 5 6 6 3 . 6 5 . . 5 6 1 . 1 Ballistic Gun 4 | . 5 . . 6 13 12 6 3 . 6 5 . . . 9 . 9 10 Ballistic Cannon 2 | . 8 . . 1 . . 5 8 . . . . . . . . 1 2 Peak Build Rating 130 | 7 11 13 15 31 68 72 73 78 95 86 102 111 114 117 113 109 113 130 Average Rating 61 | 5 7 10 12 18 65 71 72 70 83 85 99 106 112 113 110 94 108 124 On Entrance 67 | . 7 8 11 13 26 68 72 72 72 84 86 101 109 114 112 104 109 113 Naked Turns 305 | . . . . 293 . . . . . . . . . . . . . 12 Heaviest Build 147 | 13 94 98 100 103 117 124 127 133 133 124 133 142 145 146 146 134 137 147 Greatest Support 97 | 40 40 40 40 45 20 20 20 76 76 20 20 20 52 20 20 20 20 97 Greatest Overweight (x) 29 | 4 9 9 8 29 5 6 6 6 6 6 6 7 7 7 7 6 6 7 Average Overweight (x) 4 | . 2 7 5 3 4 5 5 3 5 6 6 6 5 6 6 5 6 5 Largest Inventory Capacity 25 | 8 25 25 25 25 25 25 25 25 25 25 25 25 25 25 25 25 25 25 Average Capacity 23 | 7 16 25 25 22 25 25 25 25 25 25 25 25 25 25 25 25 25 24 Most Carried 25 | 3 15 18 24 25 25 25 25 25 25 25 25 25 25 25 25 25 25 25 Average Carried 21 | 2 8 14 20 20 24 24 25 24 24 24 24 24 24 24 24 24 24 24 Final Capacity 25 | 8 25 25 25 25 25 25 25 25 25 25 25 25 25 25 25 25 25 5 Final Carried 25 | 3 11 15 24 25 25 25 25 25 24 25 25 25 25 25 25 25 24 5 Class Distribution -------------------- 26% | Mutant 16% | Scrapper 11% | Scavenger-Mutant 9% | Commander-Scrapper 5% | Tank 4% | Infiltrator-Tank 4% | Infiltrator-Scrapper 4% | Scavenger-Tank 4% | Derelict-Mutant 3% | Scavenger-Scrapper Dominant Class ---------------- Mutant | -10/Materials Mutant | -10/Subcaves Scavenger-Mutant | -8/Recycling Mutant | -8/Scraptown Scrapper | -6/Factory Commander-Scrapper | -6/Lower Caves Commander-Scrapper | -6/Lower Caves Commander-Scrapper | -6/Zion Tank | -6/Deep Caves Scrapper | -5/Proximity Caves Infiltrator-Scrapper | -5/Factory Scavenger-Tank | -5/Waste Scavenger-Skirmisher | -5/Factory Scrapper | -5/Upper Caves Scrapper | -5/Upper Caves Scrapper | -5/Zhirov Scrapper | -4/Proximity Caves Infiltrator-Tank | -4/Factory Resources | -11 -10 -10 -8 -8 -6 -6 -6 -6 -6 -5 -5 -5 -5 -5 -5 -5 -4 -4 ----------- Run | Yrd Mat Sub Rec Scr Fac Low Low Zio Dee Pro Fac Was Fac Upp Upp Zhi Pro Fac Matter Collected 5737 | 318 380 257 358 451 22 178 120 214 332 50 50 120 213 156 285 408 108 1717 Remotely . | . . . . . . . . . . . . . . . . . . . Salvage Created 5247 | 273 702 377 56 . 44 . 49 . 14 . 57 805 767 23 . 437 60 1583 Parts 226 | 25 46 24 3 . 2 . 3 . . . 2 9 24 2 . 3 2 81 Haulers Intercepted 2 | . 2 . . . . . . . . . . . . . . . . . Recyclers Shooed 6 | 1 3 . . . . . . . . . . . . . . . . 2 Parts Field Recycled . | . . . . . . . . . . . . . . . . . . . Retrieved Matter . | . . . . . . . . . . . . . . . . . . . Parts Self-Destructed 32 | . . 6 . . . 5 8 5 . 3 . . . 2 . 1 2 . Prevented 2 | . . . . . . . . . . . . . . 2 . . . . Kills | -11 -10 -10 -8 -8 -6 -6 -6 -6 -6 -5 -5 -5 -5 -5 -5 -5 -4 -4 ------- Run | Yrd Mat Sub Rec Scr Fac Low Low Zio Dee Pro Fac Was Fac Upp Upp Zhi Pro Fac Combat Hostiles Destroyed 62 | . 15 10 . . 1 . 1 . 1 . 1 1 12 . . . 2 18 Guns 45 | . 12 6 . . . . 1 . 1 . . 1 9 . . . 2 13 Cannons 12 | . 3 2 . . 1 . . . . . 1 . . . . . . 5 AOE 4 | . . 2 . . . . . . . . . . 2 . . . . . Classes Destroyed 17 | 2 7 2 . . 1 . . . 1 . . 1 1 1 . . . 1 Worker 4 | . 2 . . . . . . . . . . . . . . . . 2 Builder 1 | . 1 . . . . . . . . . . . . . . . . . Tunneler 10 | 9 . . . . . . . . . . . . 1 . . . . . Hauler 2 | . 2 . . . . . . . . . . . . . . . . . Recycler 5 | 1 1 . 1 . . . . . . . . . . . . . . 2 Minesweeper 1 | . . . . . . . . . . . . . . 1 . . . . Operator 1 | . 1 . . . . . . . . . . . . . . . . . Turret 2 | . . 2 . . . . . . . . . . . . . . . . Watcher 5 | . 3 . . . . . . . . . . . . . . . . 2 Swarmer 10 | . 6 2 . . . . . . . . . . . . . . 2 . Grunt 18 | . 9 . . . . . . . . . . . 6 . . . . 3 Duelist 1 | . . . . . . . . . . . . . . . . . . 1 Sentry 5 | . . . . . . . . . . . . . 2 . . . . 3 Programmer 18 | . . . . . 1 . 1 . . . 1 . 4 . . . . 11 Compactor 1 | . . . . . . . . . . . . 1 . . . . . . Subdweller 8 | . . 8 . . . . . . . . . . . . . . . . Z-Technician 5 | . . . . . . . . . 5 . . . . . . . . . Assembled 1 | . . . . . . . . . 1 . . . . . . . . . Best Kill Streak 5 | 4 4 3 1 . 1 . 1 . 5 . 1 1 5 1 . . 2 3 Combat Bots Only 5 | . 4 2 . . 1 . 1 . 1 . 1 1 5 . . . 2 2 Max Kills in Single Turn 5 | 1 1 2 1 . 1 . 1 . 5 . 1 1 2 1 . . 1 2 Gunslinging . | . . . . . . . . . . . . . . . . . . . Exploded 2 | . . 1 . . . . . . . . . . 2 . . . . . Melee . | . . . . . . . . . . . . . . . . . . . Uniques/NPCs Destroyed 1 | . . . . . . . . . 1 . . . . . . . . . Z-Imprinter (-6/Deep Caves) Combat | -11 -10 -10 -8 -8 -6 -6 -6 -6 -6 -5 -5 -5 -5 -5 -5 -5 -4 -4 -------- Run | Yrd Mat Sub Rec Scr Fac Low Low Zio Dee Pro Fac Was Fac Upp Upp Zhi Pro Fac Hostile Shots Fired 590 | . 70 56 . . 2 12 . . 15 . . . 81 . . . 12 342 Missed 196 | . 13 16 . . . 4 . . 9 . . . 29 . . . 2 123 Hits 394 | . 57 40 . . 2 8 . . 6 . . . 52 . . . 10 219 Melee 7 | . . . . . . . . . . . . . . . . . . 7 Projectile 387 | . 57 40 . . 2 8 . . 6 . . . 52 . . . 10 212 AOE 1 | . . . . . . . . . . . . . . . . . . 1 Critical Strikes 15 | . . 1 . . . . . . . . . . 2 . . . . 12 Damage Taken 7942 | . 653 784 . . 61 157 28 . 196 . . . 1066 . . . 152 4845 Core 1503 | . 77 154 . . . 22 . . . . . . 79 . . . 16 1155 Absorbed by Shields . | . . . . . . . . . . . . . . . . . . . Reduced by Siege Mode 39 | . . . . . . . . . . . . . . . . . . 39 Redirected to Shielding 170 | . . . . . . . . . . . . . . . . . . 170 Regen/Repaired (Parts) 247 | . . . . . . . . . . . . . . . . . . 247 Core Remaining (%) 73 | 100 . . . 7 . . . . . 97 . . . . . . 90 . Volleys Fired 561 | 16 68 61 40 . 47 13 7 6 32 9 17 29 44 30 1 24 8 109 Largest 3 | 2 2 2 1 . 3 3 3 2 3 1 1 3 3 2 2 1 2 3 Hottest 219 | 70 80 140 80 . 145 145 160 90 219 120 120 219 219 146 70 35 70 128 Shots Fired 979 | 32 133 86 38 . 51 19 13 7 68 9 17 87 98 61 3 24 15 218 Gun 660 | 32 106 36 . . 4 6 3 . 58 6 16 87 89 43 1 . 14 159 Cannon 263 | . 25 22 38 . 47 12 10 1 . 3 1 . . 18 2 24 1 59 Launcher 38 | . 2 26 . . . . . . 1 . . . 9 . . . . . Special 18 | . . 2 . . . 1 . 6 9 . . . . . . . . . Kinetic 329 | 16 66 13 . . 4 6 6 . . . . . . . 1 . 15 202 Thermal 567 | 16 65 18 38 . 47 12 7 1 58 9 17 87 89 61 2 24 . 16 Explosive 28 | . 2 26 . . . . . . . . . . . . . . . . Electromagnetic 39 | . . 29 . . . . . . 1 . . . 9 . . . . . Impact 14 | . . . . . . . . 6 8 . . . . . . . . . Robot Hit Streak 18 | 12 10 13 1 . 2 4 1 . 5 3 . 11 7 3 . 18 5 18 Robot Miss Streak 6 | 3 4 3 2 . 2 3 2 . 2 . . 2 5 4 . 1 2 6 Penetration Max 2 | . . . . . . . . . . . . . . . . . . 2 Secondary Targets 2 | . . . . . . . . . . . . . 1 . . . . 1 Max Gunslinging Chain 1 | . . . . . . . . . . . . . 1 . . . . 1 Shots Hit Robots 418 | 21 79 41 1 . 2 5 3 . 7 1 . 60 47 3 . 22 6 120 Core Hits 187 | 11 37 29 1 . 1 1 1 . 4 . 1 7 22 1 . 7 4 60 Critical Kills 9 | . . . . . . . . . . . . . . . . . . 9 Critical Parts Destroyed 24 | . . . . . . . . . 1 . . . . . . . 1 22 Critical Strikes 41 | 1 6 . . . . . . . 1 . . . . . . . 1 32 Burn 6 | 1 5 . . . . . . . . . . . . . . . . . Destroy 32 | . . . . . . . . . . . . . . . . . 1 31 Blast 2 | . 1 . . . . . . . . . . . . . . . . 1 Smash 1 | . . . . . . . . . 1 . . . . . . . . . Melee Attacks . | . . . . . . . . . . . . . . . . . . . Impact . | . . . . . . . . . . . . . . . . . . . Slashing . | . . . . . . . . . . . . . . . . . . . Piercing . | . . . . . . . . . . . . . . . . . . . Sneak Attacks . | . . . . . . . . . . . . . . . . . . . Combat Hostiles . | . . . . . . . . . . . . . . . . . . . Follow-up Attacks . | . . . . . . . . . . . . . . . . . . . Damage Inflicted 13087 | 257 1260 1073 30 . 62 99 71 . 2419 36 43 2209 2205 101 . 732 45 2445 Guns 7752 | 257 922 372 . . 21 35 71 . 69 . . 2209 1853 70 . . 45 1828 Cannons 2088 | . 229 268 30 . 41 64 . . . 36 43 . . 31 . 732 . 614 Explosions 2914 | . 26 433 . . . . . . 2103 . . . 352 . . . . . Melee . | . . . . . . . . . . . . . . . . . . . Ramming 86 | . 83 . . . . . . . . . . . . . . . . 3 Kinetic 3379 | 107 589 69 . . 21 35 71 . . . . . . . . . 45 2442 Thermal 8324 | 150 562 286 30 . 41 64 . . 2159 36 43 2209 1911 101 . 732 . . Explosive 459 | . 26 433 . . . . . . . . . . . . . . . . Electromagnetic 592 | . . 285 . . . . . . 13 . . . 294 . . . . . Impact 247 | . . . . . . . . . 247 . . . . . . . . . Slashing . | . . . . . . . . . . . . . . . . . . . Piercing . | . . . . . . . . . . . . . . . . . . . Highest Corruption 24 | . . 10 10 10 1 1 1 1 . . . 4 7 7 7 7 7 24 Average Corruption 7 | . . 10 10 10 1 1 1 1 . . . 4 6 7 7 7 7 9 Corruption Purged . | . . . . . . . . . . . . . . . . . . . Corruption Blocked . | . . . . . . . . . . . . . . . . . . . Effects 321 | . . 16 53 49 . 4 6 . . . . 4 20 42 27 9 24 67 Message Errors 77 | . . 2 11 12 . 1 2 . . . . 2 5 8 8 3 7 16 Matter Fused 78 | . . 3 19 12 . . 1 . . . . . 7 11 6 2 4 13 Heat Flow Errors 44 | . . 2 8 9 . . 1 . . . . 1 4 6 4 . 1 8 Energy Discharges 34 | . . 3 4 4 . 1 . . . . . 1 2 8 1 1 2 7 Parts Rejected 2 | . . 1 . . . . . . . . . . . . . . . 1 Parts Fused 5 | . . . 1 . . 1 . . . . . . . . 1 . . 2 Data Loss (minor) 38 | . . 3 4 7 . 1 2 . . . . . 1 3 6 . 3 8 Data Loss (major) 18 | . . 1 1 4 . . . . . . . . . 3 . . 3 6 Misfires 8 | . . . 2 . . . . . . . . . . 2 1 1 2 . Alerts 2 | . . . . 1 . . . . . . . . . . . 1 . . Misdirections 1 | . . 1 . . . . . . . . . . . . . . . . Weapon Failures 14 | . . . 3 . . . . . . . . . 1 1 . 1 2 6 Overload Shots . | . . . . . . . . . . . . . . . . . . . Overflow Damage 527 | . 2 . . . . . . . 423 . . . . 11 . 58 . 33 Projectiles 192 | . . . . . . . . . 90 . . . . 11 . 58 . 33 Explosions 333 | . . . . . . . . . 333 . . . . . . . . . Melee 2 | . 2 . . . . . . . . . . . . . . . . . Knockbacks 12 | . 3 2 . . . . . . 1 . . . . . . . . 6 Impact 1 | . . . . . . . . . 1 . . . . . . . . . Kinetic 10 | . 3 2 . . . . . . . . . . . . . . . 5 Secondary 1 | . . . . . . . . . . . . . . . . . . 1 Self-Inflicted Damage 106 | . 48 57 . . . . . . . . . . . . . . . 1 Shots 4 | . 1 3 . . . . . . . . . . . . . . . . Rammed 11 | . 10 . . . . . . . . . . . . . . . . 1 Targets Rammed 13 | . 12 . . . . . . . . . . . . . . . . 1 Kicked . | . . . . . . . . . . . . . . . . . . . Crushed 2 | . 2 . . . . . . . . . . . . . . . . . Highest Temperature 303 | 54 184 184 300 243 184 161 215 12 171 234 102 207 303 234 248 . 200 246 Average Temperature 71 | 24 39 52 96 106 52 72 77 8 86 81 33 90 92 103 107 . 102 85 Received Heat Transfer 1155 | . 237 198 . . . 36 . . 54 . . . 216 . . . . 414 Effects 1 | . . . . . . . 1 . . . . . . . . . . . Energy Bleed 1 | . . . . . . . 1 . . . . . . . . . . . Siege Activations 3 | . . . . . . . . . . . . . . . . . . 3 Total Turns 53 | . . . . . . . . . . . . . . . . . . 53 Longest Duration 30 | . . . . . . . . . . . . . . . . . . 30 Martial Activations . | . . . . . . . . . . . . . . . . . . . Shielding Activations . | . . . . . . . . . . . . . . . . . . . Robots Disrupted . | . . . . . . . . . . . . . . . . . . . Combat Hostiles . | . . . . . . . . . . . . . . . . . . . Robots Corrupted 1 | . . . . . . . . . . . . . 1 . . . . . Combat Hostiles 1 | . . . . . . . . . . . . . 1 . . . . . Parts Fried 3 | . . 2 . . . . . . . . . . 1 . . . . . Impact Corruptions 4 | . 1 . . . . . . . 3 . . . . . . . . . Robots Melted . | . . . . . . . . . . . . . . . . . . . Combat Hostiles . | . . . . . . . . . . . . . . . . . . . Parts Melted 7 | . 3 1 . . . . 1 . . . . . 2 . . . . . Heat Transferred 8722 | 518 1998 408 37 . 50 100 . . 74 80 80 2405 1900 124 . 948 . . Parts Sabotaged . | . . . . . . . . . . . . . . . . . . . Parts Stolen . | . . . . . . . . . . . . . . . . . . . Parts Stripped . | . . . . . . . . . . . . . . . . . . . Power Chain Reactions 2 | . . . . . . . . . . . . . 2 . . . . . Alert | -11 -10 -10 -8 -8 -6 -6 -6 -6 -6 -5 -5 -5 -5 -5 -5 -5 -4 -4 ------- Run | Yrd Mat Sub Rec Scr Fac Low Low Zio Dee Pro Fac Was Fac Upp Upp Zhi Pro Fac Maximum Alert Level 1 | . 1 . 1 . . . . . . . . . . . . . . . Low Security (%) 96 | 100 93 . 84 . 100 . . . . . 100 100 100 . . . . 100 Level 1 3 | . 6 . 15 . . . . . . . . . . . . . . . Level 2 . | . . . . . . . . . . . . . . . . . . . Level 3 . | . . . . . . . . . . . . . . . . . . . Level 4 . | . . . . . . . . . . . . . . . . . . . Level 5 . | . . . . . . . . . . . . . . . . . . . High Security . | . . . . . . . . . . . . . . . . . . . Max Security . | . . . . . . . . . . . . . . . . . . . Peak Influence 282 | 20 212 . 282 . 31 . . . . . 150 6 185 . . . . 197 Initial 273 | . . . 273 . . . . . . . 150 . . . . . . 150 Average 58 | 3 94 . 72 . 3 . . . . . 24 . 95 . . . . 85 Influence Increases 3178 | 50 548 605 97 . 98 94 128 . . 10 225 32 419 5 . 15 70 782 Destroy 0b10 Robot/C 1200 | . 300 80 . . 20 60 80 . . . 20 . 240 . . . 40 360 Destroy 0b10 Robot/NC 170 | 50 50 . 5 . . . . . . 10 . . 5 5 . 15 . 30 Destroy Leader 294 | . 80 . . . 10 10 20 . . . 10 . 60 . . . . 104 Allied During Kill 52 | . . . . . . 24 28 . . . . . . . . . . . Successful Hack 53 | . 14 . 13 . 12 . . . . . . . . . . . . 14 Select Force Hacks 30 | . . . 30 . . . . . . . . . . . . . . . Disable Machine 90 | . . . 15 . 15 . . . . . 15 . 30 . . . . 15 Destroy Structure 284 | . 14 . 19 . 41 . . . . . 30 32 54 . . . . 94 Advance Influence 300 | . . . . . . . . . . . 150 . . . . . . 150 Lose Combat Pursuer 705 | . 90 525 15 . . . . . . . . . 30 . . . 30 15 Influence Decreases 3037 | 50 456 126 668 . 96 34 190 . . 10 225 32 314 110 . 15 70 641 Entered New Map 398 | . . 45 298 . . 2 13 . . . . . . 40 . . . . Time Decay 2393 | 50 426 51 370 . 96 32 157 . . 10 225 32 294 70 . 15 70 495 Lost Part 200 | . 30 30 . . . . . . . . . . 20 . . . . 120 Lost Ally 20 | . . . . . . . 20 . . . . . . . . . . . Purge Threat 26 | . . . . . . . . . . . . . . . . . . 26 Squads Dispatched 22 | . 4 . . . 5 . . . . . 2 . 4 . . . . 7 Investigation 7 | . 2 . . . 3 . . . . . . . 1 . . . . 1 Extermination 10 | . . . . . 2 . . . . . 2 . 2 . . . . 4 Reinforcement 5 | . 2 . . . . . . . . . . . 1 . . . . 2 Assault . | . . . . . . . . . . . . . . . . . . . Garrison . | . . . . . . . . . . . . . . . . . . . Intercept . | . . . . . . . . . . . . . . . . . . . Searches Triggered . | . . . . . . . . . . . . . . . . . . . Construction Impeded 1 | . . . . . . . . . . . . . 1 . . . . . Haulers Reinforced 1 | . . . . . . . . . . . . . . . . . . 1 Active Scanning Responses . | . . . . . . . . . . . . . . . . . . . Cargo Convoy Interrupts 1 | . . . . . . . . . . . . . . . . . . 1 Stealth | -11 -10 -10 -8 -8 -6 -6 -6 -6 -6 -5 -5 -5 -5 -5 -5 -5 -4 -4 --------- Run | Yrd Mat Sub Rec Scr Fac Low Low Zio Dee Pro Fac Was Fac Upp Upp Zhi Pro Fac Distress Signals 4 | . 2 . 1 . . . . . . . . . . . . . 1 . Communications Jammed 11 | . . . . . . . . . . 2 . . . . . . . 9 Distress Signals 9 | . . . . . . . . . . . . . . . . . . 9 Times Spotted 114 | . 28 15 . . 1 3 3 . 6 2 . 1 15 . . . 3 37 Peak Tracking Total 13 | . 4 2 1 . 1 3 1 . 3 2 . 1 4 . . . 5 13 Tactical Retreats 13 | . 3 4 1 . . . . . . . . . 2 . . . 2 1 Traps | -11 -10 -10 -8 -8 -6 -6 -6 -6 -6 -5 -5 -5 -5 -5 -5 -5 -4 -4 ------- Run | Yrd Mat Sub Rec Scr Fac Low Low Zio Dee Pro Fac Was Fac Upp Upp Zhi Pro Fac Traps Triggered 8 | . 3 1 . . 1 . . . . . 1 . . . . . . 2 Indirectly . | . . . . . . . . . . . . . . . . . . . Trap Hack Attempts . | . . . . . . . . . . . . . . . . . . . Triggered . | . . . . . . . . . . . . . . . . . . . Disarmed . | . . . . . . . . . . . . . . . . . . . Reprogrammed . | . . . . . . . . . . . . . . . . . . . Reused 1 | . . 1 . . . . . . . . . . . . . . . . Traps Extracted . | . . . . . . . . . . . . . . . . . . . Installed 1 | . . 1 . . . . . . . . . . . . . . . . Triggered . | . . . . . . . . . . . . . . . . . . . Most Traps Carried 3 | . . 1 . . . . . . . . . . . 3 3 3 . . Machines | -11 -10 -10 -8 -8 -6 -6 -6 -6 -6 -5 -5 -5 -5 -5 -5 -5 -4 -4 ---------- Run | Yrd Mat Sub Rec Scr Fac Low Low Zio Dee Pro Fac Was Fac Upp Upp Zhi Pro Fac Machines Disabled 15 | . . 2 1 . 1 . . 3 3 . 1 . 2 1 . . . 1 Max in Single Turn 2 | . . 1 1 . 1 . . 1 2 . 1 . 1 1 . . . 1 Machines Repaired . | . . . . . . . . . . . . . . . . . . . Machines Dismantled . | . . . . . . . . . . . . . . . . . . . Machines Sabotaged . | . . . . . . . . . . . . . . . . . . . Overloaded Fab Kills . | . . . . . . . . . . . . . . . . . . . Hacking | -11 -10 -10 -8 -8 -6 -6 -6 -6 -6 -5 -5 -5 -5 -5 -5 -5 -4 -4 --------- Run | Yrd Mat Sub Rec Scr Fac Low Low Zio Dee Pro Fac Was Fac Upp Upp Zhi Pro Fac Machines Accessed 38 | . 8 . 6 2 6 . . . . . 1 . 2 . 1 4 . 8 Terminals 18 | . 6 . 5 . 1 . . . . . . . . . . . . 6 Fabricators 1 | . . . . . 1 . . . . . . . . . . . . . Repair Stations 2 | . . . . . . . . . . . . . 1 . . . . 1 Recycling Units 4 | . 2 . 1 . 1 . . . . . . . . . . . . . Scanalyzers 3 | . . . . . 2 . . . . . . . 1 . . . . . Garrison Access 3 | . . . . . 1 . . . . . 1 . . . . . . 1 Total Hacks 118 | . 24 . 13 24 15 . . . . . 2 . 6 . 1 17 . 16 Successful 75 | . 12 . 9 24 4 . . . . . . . 4 . 1 17 . 4 Failed 43 | . 12 . 4 . 11 . . . . . 2 . 2 . . . . 12 Catastrophic 6 | . . . . . 1 . . . . . . . . . . . . 5 Database Lockouts . | . . . . . . . . . . . . . . . . . . . Manual 45 | . 20 . 10 . 2 . . . . . . . . . . . . 13 Terminals 47 | . 20 . 12 . 1 . . . . . . . . . . . . 14 Fabricators 4 | . . . . . 4 . . . . . . . . . . . . . Repair Stations 4 | . . . . . . . . . . . . . 3 . . . . 1 Recycling Units 7 | . 4 . 1 . 2 . . . . . . . . . . . . . Scanalyzers 9 | . . . . . 6 . . . . . . . 3 . . . . . Garrison Access 5 | . . . . . 2 . . . . . 2 . . . . . . 1 Terminal Hacks 49 | . 3 . 2 24 . . . . . . . . . . 1 17 . 2 Record 31 | . . . 2 24 . . . . . . . . . . . 5 . . Part Schematic 4 | . . . . . . . . . . . . . . . . 4 . . Robot Analysis 7 | . 3 . . . . . . . . . . . . . . 4 . . Prototype ID Bank 4 | . . . . . . . . . . . . . . . . 4 . . Open Door 1 | . . . . . . . . . . . . . . . 1 . . . Recycling Unit Index 1 | . . . . . . . . . . . . . . . . . . 1 Unreport Threat 1 | . . . . . . . . . . . . . . . . . . 1 Fabricator Hacks 2 | . . . . . 2 . . . . . . . . . . . . . Network Status 1 | . . . . . 1 . . . . . . . . . . . . . Build 1 | . . . . . 1 . . . . . . . . . . . . . Repair Station Hacks 1 | . . . . . . . . . . . . . 1 . . . . . Scan Component 1 | . . . . . . . . . . . . . 1 . . . . . Recycling Unit Hacks 2 | . 2 . . . . . . . . . . . . . . . . . Retrieve Components 2 | . 2 . . . . . . . . . . . . . . . . . Scanalyzer 4 | . . . . . 1 . . . . . . . 3 . . . . . Insert Component 2 | . . . . . 1 . . . . . . . 1 . . . . . Analyze 2 | . . . . . . . . . . . . . 2 . . . . . Garrison Access Hacks . | . . . . . . . . . . . . . . . . . . . Unauthorized Hacks 17 | . 7 . 7 . 1 . . . . . . . . . . . . 2 Terminals 14 | . 7 . 6 . . . . . . . . . . . . . . 1 Assimilate 1 | . . . 1 . . . . . . . . . . . . . . . Botnet 3 | . 2 . . . . . . . . . . . . . . . . 1 Skim 10 | . 5 . 5 . . . . . . . . . . . . . . . Fabricators . | . . . . . . . . . . . . . . . . . . . Repair Stations 1 | . . . . . . . . . . . . . . . . . . 1 Patch 1 | . . . . . . . . . . . . . . . . . . 1 Recycling Units 2 | . . . 1 . 1 . . . . . . . . . . . . . Tunnel 1 | . . . 1 . . . . . . . . . . . . . . . Scrapoids 1 | . . . . . 1 . . . . . . . . . . . . . Scanalyzers . | . . . . . . . . . . . . . . . . . . . Garrison Access . | . . . . . . . . . . . . . . . . . . . Data Cores Recovered . | . . . . . . . . . . . . . . . . . . . Used . | . . . . . . . . . . . . . . . . . . . Hacking Detections 24 | . 6 . 2 . 6 . . . . . 1 . 2 . . . . 7 Full Trace Events 5 | . 2 . . . 2 . . . . . . . 1 . . . . . Feedback Events . | . . . . . . . . . . . . . . . . . . . Feedback Blocked . | . . . . . . . . . . . . . . . . . . . Robot Schematics Acquired . | . . . . . . . . . . . . . . . . . . . Robots Built . | . . . . . . . . . . . . . . . . . . . Authchips . | . . . . . . . . . . . . . . . . . . . Time . | . . . . . . . . . . . . . . . . . . . Total Robot Build Rating . | . . . . . . . . . . . . . . . . . . . Part Schematics Acquired 4 | . . . . . . . . . . . . . . . . 4 . . Parts Built 2 | . . . . . 2 . . . . . . . . . . . . . Authchips . | . . . . . . . . . . . . . . . . . . . Time 106 | . . . . . 106 . . . . . . . . . . . . . Total Part Build Rating 12 | . . . . . 12 . . . . . . . . . . . . . Parts Repaired . | . . . . . . . . . . . . . . . . . . . Time . | . . . . . . . . . . . . . . . . . . . Parts Recycled . | . . . . . . . . . . . . . . . . . . . Recycled Matter . | . . . . . . . . . . . . . . . . . . . Retrieved Matter . | . . . . . . . . . . . . . . . . . . . Retrieved Components 19 | . 19 . . . . . . . . . . . . . . . . . Parts Scanalyzed 2 | . . . . . 1 . . . . . . . 1 . . . . . Part Schematics Acquired . | . . . . . . . . . . . . . . . . . . . Parts Damaged 1 | . . . . . 1 . . . . . . . . . . . . . Bothacking | -11 -10 -10 -8 -8 -6 -6 -6 -6 -6 -5 -5 -5 -5 -5 -5 -5 -4 -4 ------------ Run | Yrd Mat Sub Rec Scr Fac Low Low Zio Dee Pro Fac Was Fac Upp Upp Zhi Pro Fac Used RIF Installer . | . . . . . . . . . . . . . . . . . . . Robots Hacked . | . . . . . . . . . . . . . . . . . . . Non-combat . | . . . . . . . . . . . . . . . . . . . Combat . | . . . . . . . . . . . . . . . . . . . Robot Hacks Applied . | . . . . . . . . . . . . . . . . . . . Relay Couplers Released . | . . . . . . . . . . . . . . . . . . . Fabnet Peak Effective % . | . . . . . . . . . . . . . . . . . . . Robots Rewired . | . . . . . . . . . . . . . . . . . . . Allies Hacked . | . . . . . . . . . . . . . . . . . . . Hacks Repelled . | . . . . . . . . . . . . . . . . . . . Allies | -11 -10 -10 -8 -8 -6 -6 -6 -6 -6 -5 -5 -5 -5 -5 -5 -5 -4 -4 -------- Run | Yrd Mat Sub Rec Scr Fac Low Low Zio Dee Pro Fac Was Fac Upp Upp Zhi Pro Fac Total Allies 5 | . . . . . 5 . . . . . . . . . . . . . Largest Group 5 | . . . . . 5 5 5 4 4 1 . . . . . . . . Highest-Rated Group 140 | . . . . . 140 140 140 112 112 28 . . . . . . . . Highest-Rated Ally 28 | . . . . . 28 28 28 28 28 28 . . . . . . . . Total Orders 26 | . . . . . . . 2 3 18 2 . . . . 1 . . . STAY 14 | . . . . . . . 1 2 10 1 . . . . . . . . FOLLOW 11 | . . . . . . . 1 1 8 1 . . . . . . . . EXPLORE 1 | . . . . . . . . . . . . . . . 1 . . . Ally Attacks 90 | . . . . . . 20 23 . 33 14 . . . . . . . . Total Damage 1247 | . . . . . . 405 355 . 407 80 . . . . . . . . Kills 14 | . . . . . . 3 4 . 5 2 . . . . . . . . Allies Corrupted 1 | . . . . . . . . . . . . . . . 1 . . . Allies Melted . | . . . . . . . . . . . . . . . . . . . Intel | -11 -10 -10 -8 -8 -6 -6 -6 -6 -6 -5 -5 -5 -5 -5 -5 -5 -4 -4 ------- Run | Yrd Mat Sub Rec Scr Fac Low Low Zio Dee Pro Fac Was Fac Upp Upp Zhi Pro Fac Active Infowar (turns) 26211 | 24 1477 1983 1284 5546 978 472 964 2390 1453 1114 1051 1273 730 1362 769 417 694 2230 Optics 2523 | . . . . . . . . 1074 1449 . . . . . . . . . Sensors 11760 | . . . . 1 976 472 954 1311 4 1114 1051 196 730 1362 765 417 694 1713 Structural 5888 | . . . . . . . 717 1285 . . . . . . 545 417 694 2230 Seismic 11313 | 24 1477 1983 1284 5545 974 26 . . . . . . . . . . . . Cloaking 1252 | . . . . . . . . . . . 1048 204 . . . . . . Jamming 5333 | . . . . . . . . . . 1114 1051 1273 . . . . . 1895 Robot Analysis Total 7 | . 3 . . . . . . . . . . . . . . 4 . . Derelict Logs Recovered 17 | . . 1 . 5 . . 2 1 . 2 . . . 1 3 . 2 . Drone Launches 2 | . . . . . . . . . . . . . . . 2 . . . Drone Recoveries . | . . . . . . . . . . . . . . . . . . . Exploration | -11 -10 -10 -8 -8 -6 -6 -6 -6 -6 -5 -5 -5 -5 -5 -5 -5 -4 -4 ------------- Run | Yrd Mat Sub Rec Scr Fac Low Low Zio Dee Pro Fac Was Fac Upp Upp Zhi Pro Fac Turns Passed 27643 | 241 1813 2006 1284 6232 981 505 965 2393 1453 1114 1051 1275 752 1362 863 417 694 2242 Spaces Moved 14585 | 70 866 546 629 3008 676 277 660 1559 787 522 638 860 336 869 530 284 397 1071 Core 633 | 24 12 . . 575 . . . . . . . . . . . . . 22 Treads 2748 | 46 638 58 . 1040 . . . 526 100 . . . 117 . . . . 223 Legs . | . . . . . . . . . . . . . . . . . . . Wheels 11204 | . 216 488 629 1393 676 277 660 1033 687 522 638 860 219 869 530 284 397 826 Hover . | . . . . . . . . . . . . . . . . . . . Flight . | . . . . . . . . . . . . . . . . . . . Fastest Speed 50 | 50 160 130 130 50 110 120 120 120 120 130 130 130 130 130 130 120 130 50 Average Speed 158 | 158 174 233 172 204 119 120 120 148 142 130 130 134 178 134 132 121 130 153 Slowest Speed 1500 | 250 480 480 210 1500 120 130 130 205 410 130 130 140 255 140 140 130 130 245 Overloaded Moves . | . . . . . . . . . . . . . . . . . . . Propulsion Burnouts . | . . . . . . . . . . . . . . . . . . . Robots Hopped . | . . . . . . . . . . . . . . . . . . . Potential Cave-ins 3 | . . . . . . . . . . . . . . . . . . 3 Cave-ins Triggered . | . . . . . . . . . . . . . . . . . . . Exploration Rate (%) 57 | 6 98 32 93 88 20 49 77 86 73 58 16 95 11 82 72 61 49 32 Regions Visited 18 Branch Regions 12 Pre-discovered Areas 18 | . . 1 6 5 . . . 1 . . . . . . 1 3 1 . Known Exits Taken 12 | . . . 1 . 1 1 1 1 1 1 . . 1 1 1 1 1 . Unknown Exits Taken 4 | 1 1 1 . 1 . . . . . . . . . . . . . . Scrap Searched 29 | . . . . 7 . 2 4 3 . 3 . . . 5 5 . . . Spaces Dug 140 | . . . 13 . 26 5 3 . 21 4 14 . 9 22 2 . 1 20 Terrain Destroyed 450 | . 12 71 36 . 45 10 9 . 78 8 15 17 29 56 2 . 1 61 Melee . | . . . . . . . . . . . . . . . . . . . Projectile 338 | . . 1 36 . 45 10 9 . 56 8 15 17 26 56 2 . 1 56 AOE 107 | . 12 70 . . . . . . 22 . . . 3 . . . . . Terrain Rammed . | . . . . . . . . . . . . . . . . . . . Walls Destroyed . | . . . . . . . . . . . . . . . . . . . Machines Disabled . | . . . . . . . . . . . . . . . . . . . Actions | -11 -10 -10 -8 -8 -6 -6 -6 -6 -6 -5 -5 -5 -5 -5 -5 -5 -4 -4 --------- Run | Yrd Mat Sub Rec Scr Fac Low Low Zio Dee Pro Fac Was Fac Upp Upp Zhi Pro Fac Total 18181 | 166 1029 1181 792 3098 804 433 821 1628 1064 948 847 908 404 1002 689 337 559 1471 Wait 2490 | 71 54 549 108 . 54 135 146 7 182 413 166 2 7 81 136 . 153 226 Move 14568 | 69 865 545 628 3007 675 276 659 1558 786 521 638 859 335 868 529 283 396 1071 Hop . | . . . . . . . . . . . . . . . . . . . Pick Up 153 | 3 12 11 11 32 10 1 1 10 12 2 9 3 4 7 6 7 . 12 Fast Attach 68 | 7 3 1 . 16 5 . . 9 10 . 1 1 1 2 2 5 . 5 Attach 49 | . 4 6 2 4 3 2 . 6 3 . 2 1 3 1 2 1 1 8 Detach 14 | . 1 . . 4 . 2 . 2 2 . . . . . . 1 . 2 Swap 112 | . 6 6 1 6 1 3 7 9 15 2 4 8 6 5 4 4 1 24 Drop 151 | . 4 1 2 29 9 1 1 21 22 1 10 5 4 8 9 11 . 13 Fire 561 | 16 68 61 40 . 47 13 7 6 32 9 17 29 44 30 1 24 8 109 Melee . | . . . . . . . . . . . . . . . . . . . Ram 2 | . 1 . . . . . . . . . . . . . . . . 1 Kick . | . . . . . . . . . . . . . . . . . . . Crush 11 | . 11 . . . . . . . . . . . . . . . . . Escape Stasis . | . . . . . . . . . . . . . . . . . . . Rewire 1 | . . . . . . . . . . . . . . . . 1 . . Trap 1 | . . 1 . . . . . . . . . . . . . . . . Miscellaneous . | . . . . . . . . . . . . . . . . . . . Route ------- -11/Scrapyard -10/Materials (discovered 6 exits: [*Mat x3] / [*Min x2] / [*Sub]) -10/Subcaves -8/Recycling (discovered 2 exits: *Fac / *Scr) -8/Scraptown (discovered 2 exits: *Fac x2) -6/Factory (discovered 6 exits: Fac x4 / *Low x2) -6/Lower Caves -6/Lower Caves (discovered 2 exits: *Fac / *Zio) -6/Zion (discovered 2 exits: *Dee / *Pro) -6/Deep Caves -5/Proximity Caves -5/Factory (discovered 4 exits: *Fac x2 / *Upp x2) -5/Waste -5/Factory (discovered 2 exits: *Upp x2) -5/Upper Caves -5/Upper Caves -5/Zhirov -4/Proximity Caves -4/Factory (discovered 3 exits: *Res x2 / *Ext) History --------- Turn | Location | Event 9 | -11/Scrapyard | Discovered new exit (range 15) 242 | -11/Scrapyard | Entered Materials 300 | -10/Materials | Build established: Mutant 564 | -10/Materials | Discovered new exit (range 9) 761 | -10/Materials | Discovered new exit (range 8) 1166 | -10/Materials | Discovered new exit (range 16) 1310 | -10/Materials | Discovered new exit (range 12) 1470 | -10/Materials | Discovered new exit (range 3) 2041 | -10/Materials | Discovered new exit (range 6) 2055 | -10/Materials | Entered Subcaves 2056 | -10/Subcaves | Approached by a straggling Scientist 2146 | -10/Subcaves | A swath of the cavern ceiling suddenly collapsed 2149 | -10/Subcaves | Learned Materials stockpile data 2790 | -10/Subcaves | Learned location of Zion (-6) 2790 | -10/Subcaves | Met a Zionite searching for "candidates" 2790 | -10/Subcaves | Core integrity fell below 50% 3210 | -10/Subcaves | Shifting Twisted Machinery released Sub. Laser 3210 | -10/Subcaves | Shifting Twisted Machinery released Piercing Trap 3599 | -10/Subcaves | System corruption reached 10% 3886 | -10/Subcaves | Core integrity fell below 20% 3964 | -10/Subcaves | Discovered new exit (range 11) 4034 | -10/Subcaves | Ambushed by Subdweller buried in earth 4061 | -10/Subcaves | Entered Recycling 4169 | -8/Recycling | Build established: Scavenger-Mutant 4559 | -8/Recycling | Discovered new exit (range 9) 5173 | -8/Recycling | Scanned before Scraplab entrance 5199 | -8/Recycling | Learned Storage emergency access door positions 5235 | -8/Recycling | Identified exit to Scraptown 5261 | -8/Recycling | Learned Storage terminal intel 5278 | -8/Recycling | Learned Factory garrison access intel 5285 | -8/Recycling | Learned location of Extension (-4) 5287 | -8/Recycling | Entered Scraplab 5288 | -8/Recycling | Learned Factory emergency access door positions 5293 | -8/Recycling | Learned location of 1 exit from Recycling 5345 | -8/Recycling | Entered Scraptown 5515 | -8/Scraptown | Scanned Subdweller tech in exchange for log data 5519 | -8/Scraptown | Learned Research terminal intel 5529 | -8/Scraptown | Learned Research interactive machine intel 5531 | -8/Scraptown | Learned Factory stockpile data 5537 | -8/Scraptown | Learned Factory interactive machine intel 5564 | -8/Scraptown | Discovered new exit (range 11) 5790 | -8/Scraptown | Visited UFD Registry 5790 | -8/Scraptown | Registered with UFD as "Matrixmachine" 5831 | -8/Scraptown | Visited Scrap Suit Storage 5858 | -8/Scraptown | Visited Chapter 10 5911 | -8/Scraptown | Visited DA-N13 Charitable Foundation 5954 | -8/Scraptown | Visited Observation Area 5979 | -8/Scraptown | Visited Cartography Club 6008 | -8/Scraptown | Visited Scrapoid Research Area 6044 | -8/Scraptown | Visited Junk Cannon Lab 6086 | -8/Scraptown | Visited Modified Component R&D 6707 | -8/Scraptown | System corruption cleaned by C-Scrubber 6781 | -8/Scraptown | Visited Shadow of the Wyrm 6800 | -8/Scraptown | Visited Bundlers 6904 | -8/Scraptown | Guru changed UFD alias to "Bladechassis" 7291 | -8/Scraptown | Build established: Mutant 7306 | -8/Scraptown | Visited IN-MT5's Study 7379 | -8/Scraptown | Visited The Evicted 7453 | -8/Scraptown | Visited Comm Corps 7768 | -8/Scraptown | Released all parts (7) 7811 | -8/Scraptown | Found Surveybot 17 Chip 7836 | -8/Scraptown | Found Deep Structural Scanner 7841 | -8/Scraptown | Learned location of Lower Caves (-7) 7841 | -8/Scraptown | Learned location of Upper Caves (-4) 7841 | -8/Scraptown | Learned location of Cetus (-4) 7841 | -8/Scraptown | Learned 12 Materials zone layouts 7841 | -8/Scraptown | Learned 16 Factory zone layouts 7841 | -8/Scraptown | Learned 20 Factory zone layouts 7841 | -8/Scraptown | Learned 24 Factory zone layouts 7841 | -8/Scraptown | Learned 8 Research zone layouts 7841 | -8/Scraptown | Learned 4 Recycling zone layouts 7841 | -8/Scraptown | Learned 12 Lower Caves zone layouts 7841 | -8/Scraptown | Learned 8 Proximity Caves zone layouts 7841 | -8/Scraptown | Learned 16 Proximity Caves zone layouts 7841 | -8/Scraptown | Learned 4 Hub_04(d) zone layouts 7841 | -8/Scraptown | Learned location of 2 exits from Factory 7841 | -8/Scraptown | Learned location of 2 exits from Research 7860 | -8/Scraptown | Visited Infowarlord's Domain 7864 | -8/Scraptown | Found Exp. Sensor Array 7959 | -8/Scraptown | Found Prototype Special Weapon 7959 | -8/Scraptown | Identified Junk Cannon 8774 | -8/Scraptown | Found Scrap Suit 8779 | -8/Scraptown | Found Scrap Suit 9422 | -8/Scraptown | Visited Symbiants 9561 | -8/Scraptown | Visited Cave Peace 9732 | -8/Scraptown | Found DCF Scrap (29 items) 10115 | -8/Scraptown | Build established: Derelict-Mutant 10914 | -8/Scraptown | Build established: Mutant 11514 | -8/Scraptown | Build established: Derelict-Mutant 11538 | -8/Scraptown | Discovered new exit (range 5) 11577 | -8/Scraptown | Entered Factory 11577 | -6/Factory | Evolved 8 slots: Power x1, Propulsion x2, Utility x4, Weapon x1 11578 | -6/Factory | Identified exit to Factory 11579 | -6/Factory | Identified exit to Lower Caves 11582 | -6/Factory | Loaded intel: 54 interactive machine locations 11583 | -6/Factory | Loaded intel: 4 garrison access locations 11949 | -6/Factory | Build established: Scrapper 12371 | -6/Factory | Fabricated Rnf. Fission Core? 12388 | -6/Factory | Found Unknown Protection 12388 | -6/Factory | Identified Hvy. Reactive Plating 12528 | -6/Factory | Scrapoid reinforcements arrived 12558 | -6/Factory | Entered Lower Caves 12558 | -6/Lower Caves | Accompanied by 5 allies 12559 | -6/Lower Caves | Identified exit to Lower Caves 12744 | -6/Lower Caves | Encountered a Warlord checkpoint 12815 | -6/Lower Caves | Build established: Commander-Scrapper 13063 | -6/Lower Caves | Entered another Lower Caves area 13063 | -6/Lower Caves | Accompanied by 5 allies 13080 | -6/Lower Caves | Discovered exit to Factory (range 11) 13258 | -6/Lower Caves | Learned Factory trap positions 13539 | -6/Lower Caves | Learned Factory interactive machine intel 13835 | -6/Lower Caves | Discovered new exit (range 13) 14027 | -6/Lower Caves | Identified exit to Zion 14028 | -6/Lower Caves | Entered Zion 14028 | -6/Zion | Accompanied by 4 allies 14029 | -6/Zion | Identified exit to Proximity Caves 14069 | -6/Zion | System corruption cleaned by Quarantine Array 14306 | -6/Zion | Found Prototype Device 14306 | -6/Zion | Identified Bomb Factory No. 2 14516 | -6/Zion | Found Prototype Device 14516 | -6/Zion | Identified Phasing AFG 14617 | -6/Zion | Given the Hacking Drone Bay 14618 | -6/Zion | Found Prototype Device 14687 | -6/Zion | Received a visual enhancement algorithm 14792 | -6/Zion | Learned Factory terminal intel 14824 | -6/Zion | Learned location of Warlord (-4) 15192 | -6/Zion | Discovered new exit (range 7) 15559 | -6/Zion | Saw the warning signs outside the Deep Caves entrance 15679 | -6/Zion | Build established: Derelict-Tank 16295 | -6/Zion | Build established: Commander-Mutant 16419 | -6/Zion | Identified exit to Deep Caves 16421 | -6/Zion | Entered Deep Caves 16421 | -6/Deep Caves | Accompanied by 4 allies 16422 | -6/Deep Caves | Identified exit to Proximity Caves 16603 | -6/Deep Caves | Z-Facility disabled 16642 | -6/Deep Caves | Attacked by Z-Imprinter 16656 | -6/Deep Caves | Allies destroyed Z-Imprinter 16779 | -6/Deep Caves | Identified Hacking Drone Bay 16803 | -6/Deep Caves | Found Prototype Device 16803 | -6/Deep Caves | Identified Zio. Metafield Generator 16821 | -6/Deep Caves | Found Prototype Protection 16821 | -6/Deep Caves | Identified Zio. Weapon Casing 16826 | -6/Deep Caves | Found Zio. Weapon Casing 17050 | -6/Deep Caves | Build established: Tank 17235 | -6/Deep Caves | Spotted AG-97656 17284 | -6/Deep Caves | Found Prototype Energy Cannon 17284 | -6/Deep Caves | Identified Gui. Plasma Cannon 17874 | -6/Deep Caves | Entered Proximity Caves 17874 | -5/Proximity Caves | Accompanied by 1 ally 17879 | -5/Proximity Caves | Spotter reported a threat 18163 | -5/Proximity Caves | Build established: Scrapper 18335 | -5/Proximity Caves | Learned location of 1 exit from Factory 18978 | -5/Proximity Caves | Discovered exit to Factory (range 8) 18988 | -5/Proximity Caves | Entered Factory 18988 | -5/Factory | Evolved 2 slots: Utility x2 18989 | -5/Factory | Identified exit to Upper Caves 18990 | -5/Factory | Identified exit to Factory 18992 | -5/Factory | Loaded intel: 108 trap records 18993 | -5/Factory | Loaded intel: 54 interactive machine locations 18994 | -5/Factory | Loaded intel: 26 terminal locations 19139 | -5/Factory | Discovered exit to Factory (range 13) 19276 | -5/Factory | Build established: Infiltrator-Scrapper 20039 | -5/Factory | Sucked down chute 20039 | -5/Factory | Entered Waste 20039 | -5/Waste | The area was eerily silent 20204 | -5/Waste | Discovered new exit (range 16) 20229 | -5/Waste | A Compactor rumbled back to life 20230 | -5/Waste | Spotted C-40 Crusher 20537 | -5/Waste | Destroyed C-40 Crusher 20549 | -5/Waste | Build established: Scavenger-Tank 21313 | -5/Waste | Identified exit to Factory 21314 | -5/Waste | Entered Factory 21601 | -5/Factory | Build established: Scavenger-Skirmisher 22027 | -5/Factory | Build established: Scavenger-Scrapper 22066 | -5/Factory | Entered Upper Caves 22275 | -5/Upper Caves | Learned Factory interactive machine intel 22574 | -5/Upper Caves | Encountered a Warlord checkpoint 23037 | -5/Upper Caves | Build established: Scrapper 23089 | -5/Upper Caves | Discovered new exit (range 8) 23098 | -5/Upper Caves | Identified exit to Upper Caves 23243 | -5/Upper Caves | Found Alien Artifact 23243 | -5/Upper Caves | Identified Dimensional Node Initializer 23243 | -5/Upper Caves | Initialized slip node 23428 | -5/Upper Caves | Entered another Upper Caves area 23610 | -5/Upper Caves | Encountered a Warlord checkpoint 23616 | -5/Upper Caves | Learned Factory emergency access door positions 24069 | -5/Upper Caves | Discovered new exit (range 12) 24093 | -5/Upper Caves | Learned Factory terminal intel 24158 | -5/Upper Caves | Learned location of Armory (-3) 24289 | -5/Upper Caves | Identified exit to Zhirov 24291 | -5/Upper Caves | Entered Zhirov 24292 | -5/Zhirov | Identified exit to Proximity Caves 24314 | -5/Zhirov | Met Zhirov 24337 | -5/Zhirov | Learned location of Quarantine (-3) 24337 | -5/Zhirov | Learned location of Testing (-2) 24337 | -5/Zhirov | Learned location of Command (-1) 24355 | -5/Zhirov | Zhirov requested help retrieving the SGEMP Prototype 24373 | -5/Zhirov | Found Alien Artifact 24373 | -5/Zhirov | Identified Integrated Dissipator 24373 | -5/Zhirov | Installed Integrated Dissipator, increased core heat dissipation (+20) 24390 | -5/Zhirov | Found Alien Artifact 24708 | -5/Zhirov | Entered Proximity Caves 24966 | -4/Proximity Caves | Spotter reported a threat 25268 | -4/Proximity Caves | Discovered exit to Factory (range 10) 25342 | -4/Proximity Caves | Learned location of 1 exit from Research 25402 | -4/Proximity Caves | Entered Factory 25402 | -4/Factory | Evolved 2 slots: Propulsion x1, Utility x1 25403 | -4/Factory | Identified exit to Extension 25405 | -4/Factory | Loaded intel: 56 interactive machine locations 25406 | -4/Factory | Loaded intel: 28 terminal locations 25700 | -4/Factory | Build established: Tank 25848 | -4/Factory | Found Exp. Signal Interpreter 25887 | -4/Factory | Found Quantum Capacitor 26023 | -4/Factory | Build established: Infiltrator-Tank 26133 | -4/Factory | Discovered new exit (range 15) 26149 | -4/Factory | Identified exit to Research 26796 | -4/Factory | Discovered exit to Research (range 11) 26900 | -4/Factory | Spotted B-86 Titan 27059 | -4/Factory | System corruption reached 10% 27621 | -4/Factory | Cargo convoy interrupted 27632 | -4/Factory | Released all parts (9) 27636 | -4/Factory | Core integrity fell below 50% 27638 | -4/Factory | Core integrity fell below 20% 27644 | -4/Factory | Destroyed by X-77 Beamer with Gatling Laser Last Messages --------------- 27633_ M-36 Artificer repairs H-71 Marshal. 27634_ Slammed into H-77 Assassin. 27634_ P-70 Sage knocked back. 27634_ Penetrated by Slug. 27635_ Knocked back. 27635_ Penetrated by Slug. 27635_ Slug penetrates X-72 Disruptor. 27635_ Slug penetrates Wall. 27636_ X-72 Disruptor IFF system glitched. 27636_ Slug penetrates Wall. 27636_ K-01 Serf collects debris. 27637_ X-82 Rainmaker knocked back. 27637_ Penetrated by Slug. 27637_ Acquired 4 matter. 27638_ Slug penetrates Wall. 27638_ M-36 Artificer repairs K-01 Serf. 27638_ H-77 Assassin knocked back. 27638_ Knocked back. 27643_ Slug penetrates Wall. 27643_ Slug penetrates Blast Doors. Map ----- +----------------------------------------------------+ | ??###### ###"" """"" # ####???????????? | | ??##### ##"Y== """"" # #### ######## | | ??#### ##" ! * # #### ######## | | ??##### ! ###!= *= # ################ | | ??#### ##=##+########## ################ | | ??##### ###### | | ####### | | ####### ######!* = | | ######### # #+#############################+##### | | ############ ###### # ############### [ * # | | ######### ############## = # | | ! [ ######################## + | | ###########????????##### # | | ############ !###########?????????#### # | | ##############!######????????????????#### !! # | | ##############*######????????????????#### ! # | | ############## ######????????????????#### ! # | | ?#############=######????????????????#### # | | ?############# ####??????????????????############# | | ?############# ####??????????????????############# | | ?#### = #=####??????????????????############# | | ?#### """ # ####????#######???????############# | | ?#### """ ]#!####????# #???????????????????? | | ?#### """ # ####????# #???????????????????? | | ?#### # #####???# > #???????????????????? | | ?#### ! """ !"=#####???# @ #???????????????????? | | ?#### """ [" #####???# #???????????????????? | | ?#### * """ =#*######### #####???????????????? | | ##### # "###""""" """""???????????????? | | ########### ######## ###????????????????? | | # # ##"""""""" """"""???????????????? | | "" # # ######### T#####???????????????? | | "" # # #####???## ##???????????????????? | | "" # ? # ####?????# #????????????????????? | | + # ####?????# #????????????????????? | | # # ######???#x ## ????????????????? | | # + ########## ## ??????????????? | | #### # ##########h ## ??????????????? | | ############# #########" hx## ??????????????? | | #########"" %####### m x #####+#?????????????? | | !%]!=!!=[H m ""G""?????????? | | ########### ![]=[*!![!" ""?""?????????? | | ########### *!!!!]!!!%% ^ ??????????? | | ############ *#######%" #### ??????????? | | ##############+################## ??????????? | | ????????# ## # ??????????? | | ????????# ## """ # ???????????? | | ????????# ?? """ #????????????????? | | ?????????????????????????????????????????????????? | | ?????????????????????????????????????????????????? | +----------------------------------------------------+ Best States ------------- Heat Dissipation 97 Energy Generation 45 Energy Capacity 550 Matter Stores 300 Matter Capacity 300 Sight Range 22 Robot Scan Range 20 Terrain Scan Density 10 Jamming Range 14 Cloak Strength 3 Armor Coverage 900 Resistance: KI 40 Utility Shielding 90 Phase Shifting 15 Evasion (%) 50 Melee Accuracy 8 Recoil Reduction 4 Item Schematics ----------------- Assault Drone Bay | -5/Zhirov | Free Exp. Heat Sink | -5/Zhirov | Free Exp. Optical Array | -5/Zhirov | Free Imp. Arc Thrower | -5/Zhirov | Free Robot Schematics ------------------ None Fabricated ------------ Rnf. Fission Core | x2 | -6/Factory | Preloaded Repaired ---------- Nothing Alien Tech Used ----------------- Dimensional Node Initializer Integrated Dissipator Achievements -------------- None Challenges ------------ None Game ------ Seed PropulsionWaveDeflector Manual? 0 Play Time 02:31:14 Cumulative 187.1 hours Start 2025.08.27 @ 13:19:26 End 2025.08.31 @ 19:53:48 Sessions 23 Manual Loads 0 Difficulty Rogue Special Mode None Game No. 102 Rogue 102 Adventurer 0 Explorer 0 Win Type - Total 20 Types 9/1/6/1/0/1/1/1/0/0 Lore% 71 Gallery% 64 Achievement% 71 Wizard Run 0 Options --------- Layout 1 ASCII 0 Keyboard 0 Movement Arrows Keybinds 0 Fullscreen 2 Font 24/Tamsyn Map View 50x35 Zoom Use 0% Tactical HUD 1 Map Filters NONE Filters NONE Steam 1 RUN: 01f33bfc-f742-4c2d-afa4-2f0c5c36d794